fUSD/lending_fUSD_20250511
["ID","MTS","AMOUNT","RATE_DAILY","PERIOD"]
[360751276,1746971438379,-8703.62100518,0.00013622,2]
[360751277,1746971438391,-542.31789094,0.00013622,2]
[360751278,1746971438403,-1248.67061091,0.00013622,2]
[360751279,1746971438417,-521.91,0.00013622,2]
[360751280,1746971438429,-12703.17685625,0.00013622,2]
[360751281,1746971438439,-250.0,0.00013634,2]
[360751282,1746971438449,-264.01219614,0.00013638,2]
[360751283,1746971438460,-906.70691213,0.0001366,2]
[360751284,1746971438469,-15701.95,0.00013664,2]
[360751285,1746971438479,-1518.15403548,0.00013669,2]
[360751286,1746971438496,-846.78596452,0.00013669,2]
[360751287,1746971438507,-199.16,0.00013699,2]
[360751288,1746971438517,-500.0,0.00013699,2]
[360751289,1746971438527,-500.0,0.00013699,2]
[360751290,1746971438537,-500.0,0.00013699,2]
[360751291,1746971438547,-500.0,0.00013699,2]
[360751292,1746971438558,-400.39288977,0.00013699,2]
[360751293,1746971438568,-215.95880197,0.00013699,2]
[360751294,1746971438584,-366.68348848,0.00013699,2]
[360751295,1746971438594,-200.0,0.00013705,2]
[360751296,1746971438604,-150.0,0.00013725,2]
[360751297,1746971438615,-2751.0,0.00013816,2]
[360751298,1746971438625,-1755.98,0.00013911,2]
[360751299,1746971438638,-616.07,0.00013974,2]
[360751300,1746971438648,-1031.74,0.00014035,2]
[360751301,1746971438659,-166.67,0.00014036,2]
[360751302,1746971438670,-500.0,0.00014093,2]
[360751303,1746971438680,-151.0,0.0001419,2]
[360751304,1746971438690,-1721.61,0.000142,2]
[360751305,1746971438700,-393.18,0.00014269,2]
[360751306,1746971438710,-197.39,0.00014322,2]
[360751307,1746971438720,-500.0,0.00014658,2]
[360751308,1746971438730,-500.0,0.00014658,2]
[360751309,1746971438739,-152.02,0.00014669,2]
[360751310,1746971438749,-152.02,0.00014683,2]
[360751311,1746971438759,-152.02,0.00014698,2]
[360751312,1746971438770,-152.02,0.00014713,2]
[360751313,1746971438780,-152.02,0.00014727,2]
[360751314,1746971438789,-863.53778421,0.00014733,2]
[360751315,1746971438799,-255.0,0.00014737,2]
[360751316,1746971438809,-152.02,0.00014742,2]
[360751317,1746971438819,-2597.37295275,0.00014782,2]
[360751318,1746971438829,-2597.37295271,0.00014795,2]
[360751319,1746971438841,-576.66234399,0.000148,2]
[360751320,1746971438851,-2597.37295271,0.00014808,2]
[360751321,1746971438861,-2597.37295271,0.00014821,2]
[360751322,1746971438871,-2597.37295271,0.00014834,2]
[360751323,1746971438882,-172.04,0.00014847,2]
[360751324,1746971438892,-12500.0,0.00014847,2]
[360751325,1746971438901,-2384.90149856,0.00014848,2]
[360751326,1746971439804,-154.99655219,0.00014848,2]
[360751332,1746971440489,-57.47490196,0.00014848,2]
[360751333,1746971440499,-1359.14734373,0.00014856,2]
[360751334,1746971440511,-9995.16336676,0.00014856,2]
[360751335,1746971441558,-500.0,0.00013973,2]
[360751336,1746971441568,-1145.68928951,0.00014856,2]
[360751337,1746971441577,-1554.57151154,0.00014861,2]
[360751338,1746971441590,-1042.80144117,0.00014861,2]
[360751339,1746971441600,-12500.0,0.00014865,2]
[360751340,1746971441609,-3902.494,0.00014867,2]
[360751341,1746971441619,-222.244,0.00014867,2]
[360751342,1746971441628,-7964.9,0.00014868,2]
[360751343,1746971441638,-7271.18748573,0.00014874,2]
[360751348,1746971443032,-5228.81251427,0.00014874,2]
[360751350,1746971443043,-2597.37295271,0.00014874,2]
[360751351,1746971443053,-12500.0,0.00014882,2]
[360751352,1746971443063,-392.97953077,0.00014887,2]
[360751354,1746971443076,-2204.39342194,0.00014887,2]
[360751356,1746971443086,-699.99657806,0.00014891,2]
[360751359,1746971443242,-4491.38532157,0.00014891,2]
[360751361,1746971443361,-120.76892654,0.00014891,2]
[360751362,1746971443410,-7187.84917383,0.00014891,2]
[360751363,1746971443420,-5800.0,0.00014891,2]
[360751364,1746971443430,-5800.0,0.000149,2]
[360751365,1746971443440,-375.03114608,0.000149,2]
[360751366,1746971443450,-12500.0,0.000149,2]
[360751367,1746971443459,-217.82552839,0.000149,2]
[360751368,1746971443469,-2597.37295271,0.000149,2]
[360751369,1746971443480,-344.81220848,0.000149,2]
[360751371,1746971443489,-179.61765318,0.000149,2]
[360751372,1746971443499,-239.018,0.000149,2]
[360751373,1746971443510,-1318.07665039,0.000149,2]
[360751374,1746971443521,-30976.26090396,0.000149,2]
[360751375,1746971443531,-250.0,0.00014907,2]
[360751376,1746971443541,-6396.19,0.00014914,2]
[360751377,1746971443551,-420.0,0.00014927,2]
[360751378,1746971443561,-5972.58,0.00014952,2]
[360751379,1746971443571,-500.0,0.00014973,2]
[360751380,1746971443588,-500.0,0.00014973,2]
[360751381,1746971443599,-500.0,0.00014973,2]
[360751382,1746971443609,-624.91159743,0.00014973,2]
[360751383,1746971443621,-500.0,0.00014973,2]
[360751384,1746971443632,-500.0,0.00014973,2]
[360751385,1746971443645,-500.0,0.00014973,2]
[360751386,1746971443656,-500.0,0.00014973,2]
[360751387,1746971443668,-1680.0,0.00014981,2]
[360751388,1746971443678,-300.0,0.00014999,2]
[360751389,1746971443689,-582239.30507778,0.00015,2]
[360751394,1746971445974,-10140.19520196,0.00015,2]
[360751395,1746971445987,-3607.35545461,0.00015,2]
[360751396,1746971446112,-129.64251609,0.00015,2]
[360751397,1746971446129,-6357.68300038,0.00015,2]
[360751398,1746971446154,-535.2,0.00015,2]
[360751399,1746971446407,500.0,0.00028,120]
[360751400,1746971454064,500.0,0.00028,120]
[360751401,1746971460700,500.0,0.00028,120]
[360751402,1746971467935,500.0,0.00028,120]
[360751403,1746971468390,-226.76926283,0.0001362,2]
[360751404,1746971473792,500.0,0.00028,120]
[360751405,1746971480263,-281.30280941,0.00013619,2]
[360751406,1746971482907,500.0,0.00028,120]
[360751407,1746971494895,500.0,0.00028,120]
[360751408,1746971496956,-5.84887342,0.00013619,2]
[360751409,1746971496986,-309.72244428,0.00013619,2]
[360751410,1746971501913,500.0,0.00028,120]
[360751411,1746971509481,500.0,0.00028,120]
[360751412,1746971510261,-190.27755572,0.00013619,2]
[360751413,1746971510291,-90.53943572,0.00013619,2]
[360751414,1746971515744,500.0,0.00028,120]
[360751415,1746971525008,500.0,0.00028,120]
[360751416,1746971525419,-300.0,0.00013618,2]
[360751417,1746971525454,-57.62356073,0.00013619,2]
[360751418,1746971540211,-160.46,0.00013619,2]
[360751419,1746971556858,-250.0,0.00013659,2]
[360751420,1746971556881,-1.79378616,0.00014353,2]
[360751421,1746971557595,774.46648,0.00028,120]
[360751422,1746971570272,-230.12265311,0.00014353,2]
[360751423,1746971585894,-18.08356073,0.00014353,2]
[360751424,1746971690766,-203.60879414,0.00014555,2]
[360751425,1746971705222,-79.23505486,0.00014555,2]
[360751426,1746971718634,-154.50188886,0.00013699,2]
[360751427,1746971766143,-34.69811114,0.00013699,2]
[360751428,1746971766167,-117.30188886,0.0001447,2]
[360751429,1746971780291,-214.24183446,0.0001447,2]
[360751430,1746971799480,-166.4352942,0.0001447,2]
[360751431,1746971810879,-158.71095394,0.0001447,2]
[360751432,1746971826327,-158.71095394,0.0001447,2]
[360751433,1746971840277,-273.17943571,0.0001447,2]
[360751434,1746971855218,-327.35331798,0.0001435,2]
[360751435,1746971870202,-300.0,0.0001435,2]
[360751436,1746971885238,-292.79435202,0.0001435,2]
[360751437,1746971901307,-151.0,0.00014278,2]
[360751439,1746971915208,-280.83161,0.00014278,2]
[360751440,1746971930289,-250.51791125,0.00014108,2]
[360751441,1746971945853,-300.0,0.00014108,2]
[360751442,1746971957462,1223.34652925,0.00017,10]
[360751443,1746971960291,-150.0,0.00013965,2]
[360751444,1746971960321,-77.6052272,0.00014108,2]
[360751445,1746971975194,-185.03,0.0001388,2]
[360751446,1746971975217,-55.87628195,0.00014108,2]
[360751447,1746971990455,-423.63469085,0.00014108,2]
[360751448,1746972005284,-298.05223378,0.00014108,2]
[360751449,1746972020309,-301.46786954,0.00013877,2]
[360751450,1746972035265,-231.74989668,0.00013877,2]
[360751451,1746972050309,-287.81143084,0.00013808,2]
[360751452,1746972065248,-183.5383065,0.00013808,2]
[360751453,1746972080511,-247.64428827,0.00013808,2]
[360751454,1746972095272,-169.75961356,0.00013808,2]
[360751455,1746972110947,-344.19295401,0.0001378,2]
[360751456,1746972112479,-155.80704599,0.0001378,2]
[360751457,1746972112507,-188.38590802,0.0001381,2]
[360751458,1746972125206,-182.89717704,0.00013741,2]
[360751459,1746972140301,-273.87713642,0.00013741,2]
[360751460,1746972155795,-266.71032109,0.0001374,2]
[360751461,1746972155830,-56.0349006,0.0001374,2]
[360751462,1746972156898,-322.74522169,0.0001374,2]
[360751463,1746972170889,-121.21987771,0.0001374,2]
[360751464,1746972170919,-58.79012229,0.0001374,2]
[360751465,1746972185246,-150.0,0.00013739,2]
[360751466,1746972185279,-11.19,0.0001374,2]
[360751467,1746972200307,-180.86178695,0.0001367,2]
[360751468,1746972215261,-173.65706895,0.0001364,2]
[360751469,1746972230325,-13.32618704,0.0001364,2]
[360751470,1746972230348,-144.26269313,0.0001367,2]
[360751471,1746972242358,-4083.90583692,0.0001367,2]
[360751472,1746972242383,-150.0,0.00013683,2]
[360751473,1746972242419,-430.01987771,0.0001374,2]
[360751474,1746972242452,-500.0,0.0001374,2]
[360751475,1746972242485,-500.0,0.0001374,2]
[360751476,1746972242520,-500.0,0.0001374,2]
[360751477,1746972242554,-500.0,0.0001374,2]
[360751478,1746972242585,-500.0,0.0001374,2]
[360751479,1746972242619,-500.0,0.0001374,2]
[360751480,1746972242652,-500.0,0.0001374,2]
[360751481,1746972242685,-500.0,0.0001374,2]
[360751482,1746972242719,-500.0,0.0001374,2]
[360751483,1746972242754,-500.0,0.0001374,2]
[360751484,1746972242787,-500.0,0.0001374,2]
[360751485,1746972242819,-500.0,0.0001374,2]
[360751486,1746972242852,-500.0,0.0001374,2]
[360751487,1746972242886,-500.0,0.0001374,2]
[360751488,1746972242918,-500.0,0.0001374,2]
[360751489,1746972242951,-500.0,0.0001374,2]
[360751490,1746972242983,-390.82252335,0.0001374,2]
[360751491,1746972243016,-500.0,0.0001374,2]
[360751492,1746972243056,-500.0,0.0001374,2]
[360751493,1746972243088,-500.0,0.0001374,2]
[360751494,1746972243121,-500.0,0.0001374,2]
[360751495,1746972243154,-500.0,0.0001374,2]
[360751496,1746972243187,-500.0,0.0001374,2]
[360751497,1746972243221,-500.0,0.0001374,2]
[360751498,1746972243254,-500.0,0.0001374,2]
[360751499,1746972243288,-500.0,0.0001374,2]
[360751500,1746972243320,-500.0,0.0001374,2]
[360751501,1746972243354,-500.0,0.0001374,2]
[360751502,1746972243386,-500.0,0.0001374,2]
[360751503,1746972243418,-500.0,0.0001374,2]
[360751504,1746972243451,-500.0,0.0001374,2]
[360751505,1746972243484,-500.0,0.0001374,2]
[360751506,1746972243518,-500.0,0.0001374,2]
[360751507,1746972243556,-500.0,0.0001374,2]
[360751508,1746972243589,-500.0,0.0001374,2]
[360751509,1746972243622,-500.0,0.0001374,2]
[360751510,1746972243657,-500.0,0.0001374,2]
[360751511,1746972243691,-500.0,0.0001374,2]
[360751512,1746972243726,-500.0,0.0001374,2]
[360751513,1746972243760,-200.0,0.0001374,2]
[360751514,1746972243798,-500.0,0.0001374,2]
[360751515,1746972243832,-500.0,0.0001374,2]
[360751516,1746972243866,-500.0,0.0001374,2]
[360751517,1746972243892,-2397.71,0.0001374,2]
[360751518,1746972243916,-178.5,0.00013774,2]
[360751519,1746972243943,-1021.31409198,0.0001381,2]
[360751520,1746972243969,-200.0,0.00013851,2]
[360751521,1746972243994,-214.13096903,0.00013875,2]
[360751522,1746972244021,-182.16799874,0.00013875,2]
[360751523,1746972244046,-203.09652151,0.00013875,2]
[360751524,1746972244071,-5456.37223378,0.00013877,2]
[360751525,1746972244096,-4222.76814352,0.000139,2]
[360751526,1746972244121,-446.73365497,0.00014108,2]
[360751527,1746972244146,-190.7,0.00014108,2]
[360751528,1746972244172,-250.0,0.00014158,2]
[360751529,1746972244197,-165.5,0.00014188,2]
[360751530,1746972246371,-186.98325599,0.0001421,2]
[360751531,1746972246393,-13.01674401,0.0001435,2]
[360751532,1746972260851,-147.40558599,0.0001435,2]
[360751533,1746972260875,-52.59441401,0.00014464,2]
[360751534,1746972262375,3090.46,0.00014005,2]
[360751535,1746972275771,170.89,0.00011204,2]
[360751536,1746972275892,-144.79558599,0.00014464,2]
[360751537,1746972275916,-159.67049825,0.0001447,2]
[360751538,1746972279010,150.0,0.00018,5]
[360751539,1746972290633,-192.11888246,0.0001447,2]
[360751540,1746972305259,-192.11888246,0.00014468,2]
[360751541,1746972312215,50704.46188638,0.000175,5]
[360751542,1746972328489,-1007.88111754,0.00014468,2]
[360751543,1746972328518,-300.0,0.00014468,2]
[360751544,1746972328557,-500.0,0.00014469,2]
[360751545,1746972328595,-500.0,0.00014469,2]
[360751546,1746972328633,-500.0,0.00014469,2]
[360751547,1746972328676,-500.0,0.00014469,2]
[360751548,1746972328713,-500.0,0.00014469,2]
[360751549,1746972328750,-500.0,0.00014469,2]
[360751550,1746972328788,-500.0,0.00014469,2]
[360751551,1746972328824,-500.0,0.00014469,2]
[360751552,1746972328862,-500.0,0.00014469,2]
[360751553,1746972328900,-500.0,0.00014469,2]
[360751554,1746972328938,-500.0,0.00014469,2]
[360751555,1746972328978,-500.0,0.00014469,2]
[360751556,1746972329015,-500.0,0.00014469,2]
[360751557,1746972329058,-565.28215896,0.00014469,2]
[360751558,1746972329098,-500.0,0.00014469,2]
[360751559,1746972329136,-500.0,0.00014469,2]
[360751560,1746972329174,-500.0,0.00014469,2]
[360751561,1746972329212,-500.0,0.00014469,2]
[360751562,1746972329239,-1626.8367235,0.0001447,2]
[360751563,1746972335282,-153.4,0.0001447,2]
[360751564,1746972346358,20000.0,0.00018,5]
[360751565,1746972350220,-117.337258,0.0001447,2]
[360751566,1746972350245,-93.04561042,0.0001447,2]
[360751567,1746972374219,2615.49,0.00013987,2]
[360751568,1746972378389,200.0,0.00013987,2]
[360751569,1746972381681,250.0,0.00013987,2]
[360751570,1746972434496,23900.0,0.00013987,2]
[360751571,1746972438017,161.06,0.00013987,2]
[360751572,1746972485678,289.14,0.00013957,2]
[360751575,1746972521561,1094.71,0.00013981,2]
[360751579,1746972550442,197.0,0.000142,2]
[360751582,1746972558092,1000.0,0.00013965,2]
[360751583,1746972558938,-186.98325599,0.00014367,2]
[360751584,1746972561496,-207.4,0.0001446,2]
[360751585,1746972561520,-150.0,0.00014466,2]
[360751586,1746972561542,-500.0,0.00014467,2]
[360751587,1746972561572,-500.0,0.00014467,2]
[360751588,1746972561594,-178.34742751,0.00014467,2]
[360751589,1746972561622,-500.0,0.00014467,2]
[360751590,1746972561649,-500.0,0.00014467,2]
[360751591,1746972561678,-500.0,0.00014467,2]
[360751592,1746972561699,-500.0,0.00014467,2]
[360751593,1746972561730,-500.0,0.00014467,2]
[360751594,1746972561762,-500.0,0.00014467,2]
[360751595,1746972561786,-254.26494327,0.00014467,2]
[360751596,1746972564128,-245.73505673,0.00014467,2]
[360751597,1746972564156,-500.0,0.00014467,2]
[360751598,1746972564176,-500.0,0.00014467,2]
[360751599,1746972564208,-500.0,0.00014467,2]
[360751600,1746972564229,-500.0,0.00014467,2]
[360751601,1746972564257,-500.0,0.00014467,2]
[360751602,1746972564285,-500.0,0.00014467,2]
[360751603,1746972564313,-500.0,0.00014467,2]
[360751604,1746972564340,-500.0,0.00014467,2]
[360751605,1746972564367,-500.0,0.00014467,2]
[360751606,1746972564396,-500.0,0.00014467,2]
[360751607,1746972564425,-606.5282159,0.00014467,2]
[360751608,1746972564453,-500.0,0.00014467,2]
[360751609,1746972564482,-500.0,0.00014467,2]
[360751610,1746972564509,-500.0,0.00014467,2]
[360751611,1746972564540,-500.0,0.00014467,2]
[360751612,1746972564568,-500.0,0.00014467,2]
[360751613,1746972564595,-500.0,0.00014467,2]
[360751614,1746972564624,-500.0,0.00014467,2]
[360751615,1746972564651,-500.0,0.00014467,2]
[360751616,1746972564677,-500.0,0.00014467,2]
[360751617,1746972564705,-500.0,0.00014467,2]
[360751618,1746972564733,-500.0,0.00014467,2]
[360751619,1746972564754,-250.0,0.00014469,2]
[360751620,1746972564776,-252.25066626,0.0001447,2]
[360751621,1746972564796,-205.97,0.0001453,2]
[360751622,1746972564818,-863.53778421,0.00014544,2]
[360751623,1746972564841,-245.66621939,0.00014555,2]
[360751624,1746972564862,-219.26377881,0.00014555,2]
[360751625,1746972564883,-205.97,0.00014603,2]
[360751626,1746972564905,-384.23776492,0.000147,2]
[360751627,1746972564925,-1415.0791092,0.00014703,2]
[360751628,1746972566119,-202.19783411,0.00014703,2]
[360751629,1746972566140,-184.24966454,0.00014703,2]
[360751630,1746972566160,-2584.9208908,0.00014703,2]
[360751631,1746972566181,-198.10245197,0.000148,2]
[360751632,1746972566203,-900.23,0.0001483,2]
[360751633,1746972566227,-7592.0,0.00014877,2]
[360751634,1746972566249,-2000.0,0.0001488,2]
[360751635,1746972566269,-200.0,0.0001488,2]
[360751636,1746972566291,-151.0,0.00014891,2]
[360751637,1746972566312,-155.0,0.00014891,2]
[360751638,1746972566333,-151.0,0.00014891,2]
[360751639,1746972566354,-668.65185757,0.00014891,2]
[360751640,1746972566374,-151.0,0.00014891,2]
[360751641,1746972566395,-1000.0,0.00014899,2]
[360751642,1746972566417,-2858.16669782,0.000149,2]
[360751643,1746972566444,-3121.995,0.000149,2]
[360751644,1746972566466,-177.796,0.000149,2]
[360751645,1746972566487,-1090.1965,0.000149,2]
[360751646,1746972566508,-180.78373805,0.000149,2]
[360751647,1746972566530,-166.55221697,0.000149,2]
[360751648,1746972566552,-2797.19784642,0.000149,2]
[360751649,1746972566572,-461.23858167,0.000149,2]
[360751650,1746972566592,-4395.86061675,0.000149,2]
[360751651,1746972566613,-733.45305762,0.000149,2]
[360751652,1746972566636,-34556.20074571,0.000149,2]
[360751672,1746972632420,-242.165835,0.00014825,2]
[360751673,1746972632429,-250.0,0.00014863,2]
[360751674,1746972632439,-1139.78934859,0.00014899,2]
[360751675,1746972632450,-60.21065141,0.00014899,2]
[360751676,1746972632459,-300.0,0.00014899,2]
[360751677,1746972632468,-12240.92160371,0.000149,2]
[360751678,1746972632507,-3693.33780679,0.000149,2]
[360751679,1746972632518,-2389.40415373,0.000149,2]
[360751680,1746972632528,-151.0,0.000149,2]
[360751681,1746972632539,-151.64837558,0.000149,2]
[360751682,1746972632550,-7006.51312068,0.000149,2]
[360751683,1746972632564,-4784.1185062,0.000149,2]
[360751687,1746972632580,-616.11361698,0.000149,2]
[360751688,1746972632591,-2016.30819884,0.000149,2]
[360751689,1746972632663,-342.63599996,0.000149,2]
[360751690,1746972632688,-20350.8841635,0.000149,2]
[360751691,1746972632698,-4683.40585027,0.00014948,2]
[360751692,1746972632707,-500.0,0.00014959,2]
[360751693,1746972632717,-500.0,0.00014973,2]
[360751694,1746972632730,-248.89493492,0.00014973,2]
[360751695,1746972632740,-500.0,0.00014973,2]
[360751696,1746972632749,-500.0,0.00014973,2]
[360751697,1746972632759,-500.0,0.00014973,2]
[360751698,1746972632769,-540.0,0.0001499,2]
[360751699,1746972632778,-6184.4363563,0.0001499,2]
[360751700,1746972632788,-162.8,0.0001499,2]
[360751701,1746972632797,-162.8,0.0001499,2]
[360751702,1746972632806,-162.8,0.0001499,2]
[360751703,1746972632816,-162.8,0.0001499,2]
[360751705,1746972632825,-162.8,0.0001499,2]
[360751707,1746972632835,-162.8,0.0001499,2]
[360751708,1746972632844,-162.8,0.0001499,2]
[360751709,1746972632856,-597.93567743,0.00014999,2]
[360751710,1746972632865,-300.0,0.00014999,2]
[360751711,1746972632875,-687.0,0.00015,2]
[360751712,1746972632885,-9522.17284508,0.00015,2]
[360751714,1746972632897,-2860.33960385,0.00015,2]
[360751776,1746972638186,-353.14971417,0.00014898,2]
[360751777,1746972638195,-500.0,0.00014898,2]
[360751778,1746972638204,-400.72535732,0.00014898,2]
[360751779,1746972638214,-500.0,0.00014898,2]
[360751780,1746972638223,-326.12492851,0.00015,2]
[360751781,1746972638243,-278.45860823,0.00015,2]
[360751782,1746972638254,-2112.07874154,0.00015,2]
[360751783,1746972638303,-6132.246,0.00015,2]
[360751784,1746972638363,-1008.39561349,0.00015,2]
[360751785,1746972638515,-28277.83122787,0.00015,2]
[360751786,1746972638535,-7475.3396246,0.00015,2]
[360751916,1746972640548,-622.0,0.00015,2]
[360751917,1746972640558,-102845.30094318,0.00015,2]
[360751918,1746972640570,-5120.8344708,0.00015,2]
[360751919,1746972640609,-388.1163482,0.00015,2]
[360751925,1746972641227,-16963.85101563,0.00015,2]
[360751926,1746972641371,-2017.24975964,0.00015,2]
[360751947,1746972643264,-20467.23500008,0.00015,2]
[360751949,1746972643276,-40782.61,0.00015,2]
[360751954,1746972643314,-1177.25650396,0.00015,2]
[360751962,1746972643485,-379773.04450948,0.00015,2]
[360751963,1746972643497,-1196.450002,0.00015,2]
[360751974,1746972646165,-562.0,0.00015,2]
[360751975,1746972646175,-499.99402,0.00015,2]
[360751977,1746972646187,-2188.69999975,0.00015,2]
[360751983,1746972646227,-15631.18036,0.00015,2]
[360751990,1746972646290,-514.68962338,0.00015,2]
[360751998,1746972646353,-311.81,0.00015,2]
[360752006,1746972646415,-4899.75366782,0.00015,2]
[360752008,1746972646427,-119610.324,0.00015,2]
[360752015,1746972646479,-93813.37360716,0.00015,2]
[360752017,1746972646491,-487.73818594,0.00015,2]
[360752019,1746972646547,-5883.64779993,0.00015,2]
[360752020,1746972646628,-299.99,0.00015,2]
[360752021,1746972646639,-3169.51385343,0.00015,2]
[360752022,1746972646674,-919.38489794,0.00015,2]
[360752023,1746972646685,-5186.67773456,0.00015,2]
[360752024,1746972646696,-20698.96111245,0.00015,2]
[360752030,1746972656817,1814.40117206,0.00028,120]
[360752031,1746972748842,183.29,0.00014521,2]
[360752032,1746972749197,1717.43,0.00012603,2]
[360752033,1746972780548,2089.8960398,0.00014463,2]
[360752034,1746972780570,1910.1039602,0.00014463,2]
[360752035,1746972877000,1836.21,0.00014446,2]
[360752036,1746972906186,699.42,0.000179,14]
[360752037,1746972912956,244.3020796,0.00014665,2]
[360752038,1746972958882,500.0,0.00014653,2]
[360752039,1746972974366,500.0,0.00014653,2]
[360752040,1746972984933,500.0,0.00014653,2]
[360752041,1746972999223,500.0,0.00014653,2]
[360752042,1746973008051,1228.32,0.00014356,2]
[360752043,1746973013748,255.7,0.00014653,2]
[360752044,1746973047176,282.49,0.00028,120]
[360752045,1746973074976,506.5960398,0.00014356,2]
[360752046,1746973075001,3990.6160398,0.00014356,2]
[360752047,1746973075022,3065.8879204,0.00014356,2]
[360752048,1746973116554,924.7281194,0.00014305,2]
[360752049,1746973116578,148.6518806,0.00014305,2]
[360752054,1746973214531,219.24,0.00013699,2]
[360752055,1746973228067,1028.39,0.00014316,2]
[360752056,1746973242764,500.0,0.00014446,2]
[360752057,1746973261925,863.53778421,0.00014537,2]
[360752058,1746973271788,1230.79637499,0.00014317,2]
[360752059,1746973271811,314.43362501,0.00014317,2]
[360752060,1746973397905,164.2,0.00011476,2]
[360752061,1746973398123,164.2,0.00014344,2]
[360752062,1746973441754,200.0,0.00014272,2]
[360752063,1746973451941,250.0,0.00014281,2]
[360752064,1746973504940,208.76492604,0.00014618,2]
[360752078,1746973576135,2689.01748875,0.00014257,2]
[360752079,1746973576159,3990.6160398,0.00014257,2]
[360752080,1746973576184,3990.6160398,0.00014257,2]
[360752081,1746973576207,3990.6160398,0.00014257,2]
[360752082,1746973577857,-178.7648638,0.00014257,2]
[360752083,1746973580239,-250.0,0.00014257,2]
[360752085,1746973595461,-172.21058645,0.00014256,2]
[360752086,1746973596630,-172.21058645,0.00014256,2]
[360752087,1746973611292,-155.5788271,0.00014256,2]
[360752088,1746973611323,-61.43904443,0.00014256,2]
[360752089,1746973618145,2228.12800765,0.00015,14]
[360752090,1746973625313,-300.0,0.00014255,2]
[360752091,1746973625335,-27.25861628,0.00014255,2]
[360752092,1746973628543,291.601943,0.00014185,2]
[360752093,1746973639117,-122.74138372,0.00014255,2]
[360752094,1746973639148,-165.38475766,0.00014256,2]
[360752095,1746973641382,-227.39013481,0.00014256,2]
[360752096,1746973650123,-45.7860631,0.00014256,2]
[360752097,1746973650154,-153.74782105,0.00014256,2]
[360752102,1746973655633,-328.35588308,0.00014256,2]
[360752103,1746973670278,-17.89629587,0.00014256,2]
[360752104,1746973670310,-134.12178861,0.00014256,2]
[360752105,1746973686393,-286.82853684,0.00014255,2]
[360752106,1746973698032,194.65874869,0.000135,2]
[360752107,1746973698180,200.0,0.00014184,2]
[360752108,1746973700297,-13.17146316,0.00014255,2]
[360752109,1746973700328,-163.01822311,0.00014256,2]
[360752110,1746973716764,-172.46277441,0.00014257,2]
[360752111,1746973717007,-172.46277441,0.00014257,2]
[360752112,1746973719713,200.0,0.00014173,2]
[360752113,1746973730267,-161.10255393,0.00014255,2]
[360752114,1746973745843,-170.01396221,0.00014255,2]
[360752115,1746973758339,200.0,0.00014,2]
[360752116,1746973758953,200.0,0.00012,2]
[360752117,1746973760282,-168.88348386,0.00014255,2]
[360752118,1746973760316,-220.21738886,0.00014255,2]
[360752119,1746973774271,1819.41,0.00012161,2]
[360752120,1746973775360,-269.29409299,0.00014255,2]
[360752121,1746973790297,-10.48851815,0.00014255,2]
[360752122,1746973790320,-258.80557484,0.00014255,2]
[360752130,1746973805936,-291.6019428,0.00014254,2]
[360752131,1746973820372,-8.3980572,0.00014254,2]
[360752132,1746973820395,-150.0,0.00014254,2]
[360752133,1746973820419,-130.85450045,0.00014254,2]
[360752134,1746973823554,291.601943,0.00014182,2]